fUSD/lending_fUSD_20251017
["ID","MTS","AMOUNT","RATE_DAILY","PERIOD"]
[391572394,1760668244609,-1930.514529,0.000249,7]
[391572395,1760668244620,-267.094365,0.000249,7]
[391572396,1760668244631,-151.0,0.000249,7]
[391572397,1760668244641,-151.0,0.000249,7]
[391572398,1760668244652,-1930.514529,0.000249,7]
[391572399,1760668244663,-267.094365,0.000249,7]
[391572400,1760668244674,-151.0,0.000249,7]
[391572401,1760668244684,-151.0,0.000249,7]
[391572402,1760668244695,-1930.514529,0.000249,7]
[391572403,1760668244705,-1930.514529,0.000249,7]
[391572404,1760668244716,-151.0,0.000249,7]
[391572405,1760668244727,-151.0,0.000249,7]
[391572406,1760668244737,-151.0,0.000249,7]
[391572407,1760668244748,-456.094214,0.000249,7]
[391572408,1760668244758,-456.094214,0.000249,7]
[391572409,1760668244768,-456.094214,0.000249,7]
[391572410,1760668244779,-151.0,0.000249,7]
[391572411,1760668244789,-456.094214,0.000249,7]
[391572412,1760668244799,-151.0,0.000249,7]
[391572413,1760668244810,-151.0,0.000249,7]
[391572414,1760668244821,-2257.476347,0.000249,7]
[391572415,1760668244831,-157.783834,0.000249,7]
[391572416,1760668244841,-2257.476347,0.000249,7]
[391572417,1760668244854,-2257.476347,0.000249,7]
[391572418,1760668244864,-151.0,0.000249,7]
[391572419,1760668244875,-151.0,0.000249,7]
[391572420,1760668244885,-2257.476347,0.000249,7]
[391572421,1760668244896,-151.0,0.000249,7]
[391572422,1760668244906,-182.05684,0.000249,7]
[391572423,1760668244917,-152.603841,0.000249,7]
[391572424,1760668244927,-233.707452,0.000249,7]
[391572425,1760668244937,-233.707452,0.000249,7]
[391572426,1760668244952,-151.0,0.000249,7]
[391572427,1760668244963,-233.707452,0.000249,7]
[391572428,1760668244974,-233.707452,0.000249,7]
[391572429,1760668244985,-404.16,0.0002493,2]
[391572430,1760668244996,-500.0,0.00024932,2]
[391572431,1760668245008,-599.89301792,0.00024943,2]
[391572432,1760668245019,-150.0,0.00024992,2]
[391572433,1760668245030,-1000.0,0.00025,4]
[391572434,1760668245041,-488.51177989,0.0002516,2]
[391572435,1760668245052,-525.02,0.00025202,2]
[391572436,1760668245063,-1289.8,0.00025346,2]
[391572437,1760668245074,-200.0,0.00025361,2]
[391572438,1760668245084,-500.0,0.00025361,2]
[391572439,1760668245095,-151.0,0.00025361,2]
[391572440,1760668245105,-500.0,0.00025361,2]
[391572441,1760668245116,-151.0,0.00025361,2]
[391572442,1760668245127,-500.0,0.00025361,2]
[391572443,1760668245138,-611.4762398,0.00025361,2]
[391572444,1760668245148,-151.0,0.00025361,2]
[391572445,1760668245159,-500.0,0.00025361,2]
[391572446,1760668245169,-151.0,0.00025361,2]
[391572447,1760668245179,-500.0,0.00025361,2]
[391572448,1760668245190,-151.0,0.00025361,2]
[391572449,1760668245201,-500.0,0.00025361,2]
[391572450,1760668245213,-276.4752803,0.00025361,2]
[391572451,1760668245223,-500.0,0.00025361,2]
[391572452,1760668245234,-284.17697785,0.00025361,2]
[391572453,1760668245245,-151.0,0.00025361,2]
[391572454,1760668245255,-151.0,0.00025361,2]
[391572455,1760668245265,-151.0,0.00025361,2]
[391572456,1760668245276,-151.0,0.00025361,2]
[391572457,1760668245287,-151.0,0.00025361,2]
[391572458,1760668245297,-151.0,0.00025361,2]
[391572459,1760668245312,-151.0,0.00025361,2]
[391572460,1760668245323,-333.64663694,0.00025361,2]
[391572461,1760668245333,-151.0,0.00025361,2]
[391572462,1760668245344,-151.0,0.00025361,2]
[391572463,1760668245355,-151.0,0.00025361,2]
[391572464,1760668245366,-151.0,0.00025361,2]
[391572465,1760668245377,-151.0,0.00025361,2]
[391572466,1760668245388,-151.0,0.00025361,2]
[391572467,1760668245403,-151.0,0.00025361,2]
[391572468,1760668245415,-151.0,0.00025361,2]
[391572469,1760668245426,-214.83958116,0.00025361,2]
[391572470,1760668245437,-191.74,0.00025376,10]
[391572471,1760668245448,-529.9,0.00025456,2]
[391572472,1760668245458,-151.0,0.0002552,2]
[391572473,1760668245468,-151.0,0.0002552,2]
[391572474,1760668245480,-250.0,0.0002552,2]
[391572475,1760668245491,-267.46074303,0.0002552,2]
[391572476,1760668245502,-151.0,0.0002552,2]
[391572477,1760668245513,-250.0,0.0002552,2]
[391572478,1760668245524,-151.0,0.0002552,2]
[391572479,1760668245535,-1000.0,0.0002552,2]
[391572480,1760668245546,-250.0,0.0002552,2]
[391572481,1760668245556,-9211.34798985,0.0002552,2]
[391572482,1760668245567,-1000.0,0.0002552,2]
[391572483,1760668245578,-695.39793187,0.0002552,2]
[391572484,1760668245589,-250.0,0.0002552,2]
[391572485,1760668245599,-1000.0,0.0002552,2]
[391572486,1760668245610,-151.0,0.0002552,2]
[391572487,1760668245621,-250.0,0.0002552,2]
[391572488,1760668245633,-1000.0,0.0002552,2]
[391572489,1760668245644,-151.0,0.0002552,2]
[391572490,1760668245654,-250.0,0.0002552,2]
[391572491,1760668245666,-152.72969902,0.0002552,2]
[391572492,1760668245680,-1000.0,0.0002552,2]
[391572493,1760668245694,-151.0,0.0002552,2]
[391572494,1760668245705,-250.0,0.0002552,2]
[391572495,1760668245716,-1000.0,0.0002552,2]
[391572496,1760668245727,-151.0,0.0002552,2]
[391572497,1760668245737,-250.0,0.0002552,2]
[391572498,1760668245748,-1000.0,0.0002552,2]
[391572499,1760668245758,-151.0,0.0002552,2]
[391572500,1760668245769,-250.0,0.0002552,2]
[391572501,1760668245781,-1000.0,0.0002552,2]
[391572502,1760668245791,-151.0,0.0002552,2]
[391572503,1760668245802,-250.0,0.0002552,2]
[391572504,1760668245813,-250.0,0.0002552,2]
[391572505,1760668245824,-1000.0,0.0002552,2]
[391572506,1760668245834,-152.53493316,0.0002552,2]
[391572507,1760668245844,-258.78244681,0.0002552,2]
[391572508,1760668245854,-250.0,0.0002552,2]
[391572509,1760668245868,-1037.99858219,0.0002552,2]
[391572510,1760668245879,-250.0,0.0002552,2]
[391572511,1760668245891,-250.0,0.0002552,2]
[391572512,1760668245901,-250.0,0.0002552,2]
[391572513,1760668245913,-668.65185757,0.0002552,2]
[391572514,1760668245923,-250.0,0.0002552,2]
[391572515,1760668245933,-250.0,0.0002552,2]
[391572516,1760668245944,-250.0,0.0002552,2]
[391572517,1760668245954,-250.0,0.0002552,2]
[391572518,1760668245965,-1000.0,0.0002552,2]
[391572519,1760668245976,-1000.0,0.0002552,2]
[391572520,1760668245987,-250.0,0.0002552,2]
[391572521,1760668245996,-1000.0,0.0002552,2]
[391572522,1760668246006,-1000.0,0.0002552,2]
[391572523,1760668246016,-257.11844339,0.0002552,2]
[391572524,1760668246026,-1000.0,0.0002552,2]
[391572525,1760668246037,-1000.0,0.0002552,2]
[391572526,1760668246047,-1000.0,0.0002552,2]
[391572527,1760668246057,-1000.0,0.0002552,2]
[391572528,1760668246070,-1000.0,0.0002552,2]
[391572529,1760668246080,-1000.0,0.0002552,2]
[391572530,1760668246090,-1000.0,0.0002552,2]
[391572531,1760668246100,-250.0,0.0002552,2]
[391572532,1760668246110,-151.54098254,0.0002552,2]
[391572533,1760668246120,-1000.0,0.0002552,2]
[391572534,1760668246131,-250.0,0.0002552,2]
[391572535,1760668246141,-250.0,0.0002552,2]
[391572536,1760668246151,-1000.0,0.0002552,2]
[391572537,1760668246162,-250.0,0.0002552,2]
[391572538,1760668246172,-1000.0,0.0002552,2]
[391572539,1760668246182,-250.0,0.0002552,2]
[391572540,1760668246192,-1000.0,0.0002552,2]
[391572541,1760668246202,-1000.0,0.0002552,2]
[391572542,1760668246213,-250.0,0.0002552,2]
[391572543,1760668246223,-250.0,0.0002552,2]
[391572544,1760668246233,-1000.0,0.0002552,2]
[391572545,1760668246243,-1000.0,0.0002552,2]
[391572546,1760668246253,-250.0,0.0002552,2]
[391572547,1760668246264,-250.0,0.0002552,2]
[391572548,1760668246274,-1000.0,0.0002552,2]
[391572549,1760668246285,-1000.0,0.0002552,2]
[391572550,1760668246296,-250.0,0.0002552,2]
[391572551,1760668246307,-250.0,0.0002552,2]
[391572552,1760668246318,-1000.0,0.0002552,2]
[391572553,1760668246329,-250.0,0.0002552,2]
[391572554,1760668246339,-1000.0,0.0002552,2]
[391572555,1760668246349,-250.0,0.0002552,2]
[391572558,1760668246360,-151.0,0.0002552,2]
[391572561,1760668246371,-1000.0,0.0002552,2]
[391572563,1760668246383,-250.0,0.0002552,2]
[391572565,1760668246398,-1000.0,0.0002552,2]
[391572567,1760668246409,-250.0,0.0002552,2]
[391572568,1760668246421,-151.0,0.0002552,2]
[391572569,1760668246431,-250.0,0.0002552,2]
[391572570,1760668246450,-250.0,0.0002552,2]
[391572571,1760668246469,-151.0,0.0002552,2]
[391572572,1760668246480,-250.0,0.0002552,2]
[391572573,1760668246491,-250.0,0.0002552,2]
[391572574,1760668246502,-151.0,0.0002552,2]
[391572575,1760668246513,-250.0,0.0002552,2]
[391572576,1760668246524,-250.0,0.0002552,2]
[391572577,1760668246534,-151.0,0.0002552,2]
[391572578,1760668246544,-250.0,0.0002552,2]
[391572579,1760668246555,-250.0,0.0002552,2]
[391572580,1760668246565,-257.06650216,0.0002552,2]
[391572581,1760668246576,-151.0,0.0002552,2]
[391572582,1760668246587,-151.0,0.0002552,2]
[391572583,1760668246597,-151.0,0.0002552,2]
[391572584,1760668246608,-151.0,0.0002552,2]
[391572585,1760668246620,-322.6107,0.0002552,2]
[391572586,1760668246632,-151.0,0.0002552,2]
[391572587,1760668246644,-253.71114729,0.0002552,2]
[391572588,1760668246656,-250.0,0.0002552,2]
[391572589,1760668246671,-250.0,0.0002552,2]
[391572590,1760668246683,-250.0,0.0002552,2]
[391572591,1760668246695,-250.0,0.0002552,2]
[391572592,1760668246706,-250.0,0.0002552,2]
[391572593,1760668246718,-250.0,0.0002552,2]
[391572594,1760668246730,-250.0,0.0002552,2]
[391572595,1760668246741,-250.0,0.0002552,2]
[391572596,1760668246754,-250.0,0.0002552,2]
[391572598,1760668246765,-250.0,0.0002552,2]
[391572599,1760668246776,-250.0,0.0002552,2]
[391572600,1760668246787,-151.0,0.0002552,2]
[391572604,1760668247253,-250.0,0.0002552,2]
[391572605,1760668247265,-168.0,0.00025547,2]
[391572606,1760668247275,-9552.16786547,0.00025575,2]
[391572607,1760668247284,-9905.5980765,0.0002563,2]
[391572608,1760668247294,-1775.185,0.00025648,30]
[391572609,1760668247304,-1000.0,0.00025671,30]
[391572610,1760668247314,-10272.10520533,0.00025685,2]
[391572611,1760668247324,-150.0,0.00025693,4]
[391572612,1760668247334,-150.0,0.00025693,4]
[391572613,1760668247343,-150.0,0.00025693,4]
[391572614,1760668247353,-150.0,0.00025693,4]
[391572615,1760668247363,-150.0,0.00025693,4]
[391572616,1760668247373,-150.0,0.00025693,4]
[391572617,1760668247382,-150.0,0.00025693,4]
[391572618,1760668247401,-150.0,0.00025693,4]
[391572619,1760668247416,-150.0,0.00025693,4]
[391572620,1760668247426,-150.0,0.00025693,4]
[391572621,1760668247436,-150.0,0.00025693,4]
[391572622,1760668247447,-150.0,0.00025693,4]
[391572623,1760668247457,-150.0,0.00025693,4]
[391572624,1760668247467,-150.0,0.00025693,4]
[391572625,1760668247478,-161.90960499,0.00025693,4]
[391572626,1760668247488,-150.0,0.00025693,4]
[391572627,1760668247498,-150.0,0.00025693,4]
[391572628,1760668247507,-150.0,0.00025693,4]
[391572629,1760668247517,-150.0,0.00025693,4]
[391572630,1760668247528,-1000.0,0.000257,30]
[391572631,1760668247538,-637.975,0.000257,30]
[391572632,1760668247548,-150.0,0.00025724,4]
[391572633,1760668247558,-150.0,0.00025727,4]
[391572634,1760668247568,-150.0,0.00025732,4]
[391572635,1760668247578,-10652.17309792,0.0002574,2]
[391572636,1760668247587,-150.0,0.00025746,4]
[391572637,1760668247597,-150.0,0.00025747,4]
[391572638,1760668247607,-150.0,0.00025751,4]
[391572639,1760668247617,-150.0,0.00025751,4]
[391572640,1760668247627,-150.0,0.00025755,4]
[391572641,1760668247637,-150.0,0.00025755,4]
[391572642,1760668247647,-150.0,0.00025761,4]
[391572643,1760668247657,-150.0,0.00025766,4]
[391572644,1760668247668,-150.0,0.0002577,4]
[391572645,1760668247678,-150.0,0.00025771,4]
[391572646,1760668247688,-150.0,0.00025786,4]
[391572647,1760668247698,-11046.30350255,0.00025795,2]
[391572648,1760668247708,-150.0,0.00025795,4]
[391572649,1760668247718,-150.0,0.00025799,4]
[391572650,1760668247727,-150.0,0.00025801,4]
[391572651,1760668247737,-150.0,0.0002581,4]
[391572652,1760668247751,-150.0,0.0002581,4]
[391572653,1760668247760,-150.0,0.0002581,4]
[391572654,1760668247770,-150.0,0.00025812,4]
[391572655,1760668247780,-150.0,0.00025817,4]
[391572656,1760668247790,-150.0,0.00025817,4]
[391572657,1760668247799,-150.0,0.00025829,4]
[391572658,1760668247809,-150.0,0.00025836,4]
[391572659,1760668247819,-150.0,0.0002584,4]
[391572660,1760668247829,-168.0,0.00025847,2]
[391572661,1760668247839,-150.0,0.00025847,4]
[391572662,1760668247849,-150.0,0.00025848,4]
[391572663,1760668247859,-150.0,0.0002585,4]
[391572664,1760668247870,-11455.01673214,0.0002585,2]
[391572665,1760668247879,-150.0,0.00025852,4]
[391572666,1760668247889,-150.0,0.00025855,4]
[391572667,1760668247900,-150.0,0.00025863,4]
[391572668,1760668247910,-150.0,0.00025868,4]
[391572669,1760668247921,-150.0,0.00025868,4]
[391572670,1760668247931,-150.0,0.00025879,4]
[391572671,1760668247941,-150.0,0.00025879,4]
[391572672,1760668247956,-150.0,0.00025889,4]
[391572673,1760668247969,-150.0,0.00025897,4]
[391572674,1760668247979,-150.0,0.00025905,4]
[391572675,1760668247989,-11878.85235123,0.00025905,2]
[391572676,1760668247999,-150.0,0.00025909,4]
[391572677,1760668248011,-150.0,0.0002591,4]
[391572678,1760668248021,-150.0,0.00025913,4]
[391572679,1760668248031,-150.0,0.00025925,4]
[391572680,1760668248040,-150.0,0.00025926,4]
[391572681,1760668248050,-150.0,0.00025926,4]
[391572682,1760668248060,-150.0,0.00025928,4]
[391572683,1760668248071,-150.0,0.00025931,4]
[391572684,1760668248081,-150.0,0.00025931,4]
[391572685,1760668248091,-656.13926076,0.00025938,4]
[391572686,1760668248101,-150.0,0.00025941,4]
[391572687,1760668248111,-150.0,0.00025941,4]
[391572688,1760668248120,-150.0,0.00025957,4]
[391572689,1760668248131,-12318.36988823,0.0002596,2]
[391572690,1760668248140,-150.0,0.00025962,4]
[391572691,1760668248150,-150.0,0.00025965,4]
[391572692,1760668248161,-150.0,0.00025967,4]
[391572693,1760668248171,-5888.0,0.00025967,2]
[391572694,1760668248181,-150.0,0.00025972,4]
[391572695,1760668248192,-150.0,0.00025979,4]
[391572696,1760668248202,-3751.09,0.00025979,2]
[391572697,1760668248212,-150.0,0.00025984,4]
[391572698,1760668248221,-150.0,0.00025984,4]
[391572699,1760668248231,-150.0,0.00025986,4]
[391572700,1760668248241,-150.0,0.00025999,4]
[391572701,1760668248251,-32545.79,0.00026,7]
[391572702,1760668248261,-150.0,0.00026002,4]
[391572703,1760668248271,-150.0,0.00026003,4]
[391572704,1760668248281,-150.0,0.00026003,4]
[391572705,1760668248291,-150.0,0.00026006,4]
[391572706,1760668248301,-150.0,0.0002601,4]
[391572707,1760668248311,-12774.14957409,0.00026015,2]
[391572708,1760668248321,-150.0,0.00026016,4]
[391572709,1760668248331,-150.0,0.00026033,4]
[391572710,1760668248341,-150.0,0.00026034,4]
[391572711,1760668248351,-150.0,0.00026043,4]
[391572712,1760668248360,-150.0,0.00026043,4]
[391572713,1760668248370,-150.0,0.00026045,4]
[391572714,1760668248380,-150.0,0.0002605,4]
[391572715,1760668248391,-150.0,0.00026059,4]
[391572716,1760668248404,-150.0,0.00026063,4]
[391572717,1760668248416,-150.0,0.00026066,4]
[391572718,1760668248426,-150.0,0.00026066,4]
[391572719,1760668248436,-150.0,0.00026067,4]
[391572720,1760668248446,-151.0,0.00026068,2]
[391572721,1760668248456,-13246.79310833,0.0002607,2]
[391572722,1760668248467,-150.0,0.0002607,4]
[391572723,1760668248478,-150.0,0.00026079,4]
[391572724,1760668248488,-150.0,0.00026084,4]
[391572725,1760668248498,-150.0,0.00026097,4]
[391572726,1760668248508,-2500.0,0.000261,2]
[391572727,1760668248517,-150.0,0.00026101,4]
[391572728,1760668248527,-150.0,0.00026101,4]
[391572729,1760668248536,-150.0,0.00026101,4]
[391572730,1760668248546,-150.0,0.00026101,4]
[391572731,1760668248556,-166.71,0.00026114,2]
[391572732,1760668248565,-150.0,0.00026116,4]
[391572733,1760668248575,-150.0,0.00026121,4]
[391572734,1760668248584,-150.0,0.00026123,4]
[391572735,1760668248594,-150.0,0.00026124,4]
[391572736,1760668248604,-13736.92445334,0.00026125,2]
[391572737,1760668248614,-150.0,0.00026128,4]
[391572738,1760668248624,-150.0,0.00026128,4]
[391572739,1760668248633,-150.0,0.00026132,4]
[391572740,1760668248643,-150.0,0.00026135,4]
[391572741,1760668248653,-150.0,0.00026156,4]
[391572742,1760668248663,-150.0,0.00026159,4]
[391572743,1760668248673,-150.0,0.00026159,4]
[391572744,1760668248683,-150.0,0.00026159,4]
[391572745,1760668248692,-150.0,0.00026162,4]
[391572746,1760668248702,-150.0,0.00026169,4]
[391572747,1760668248711,-150.0,0.00026169,4]
[391572748,1760668248721,-150.0,0.00026169,4]
[391572749,1760668248731,-150.0,0.00026178,4]
[391572750,1760668248740,-150.0,0.0002619,4]
[391572751,1760668248750,-150.0,0.0002619,4]
[391572752,1760668248760,-150.0,0.00026202,4]
[391572753,1760668248769,-150.0,0.00026203,4]
[391572754,1760668248779,-150.0,0.00026206,4]
[391572755,1760668248789,-150.0,0.00026218,4]
[391572756,1760668248799,-150.0,0.00026218,4]
[391572757,1760668248808,-150.0,0.00026221,4]
[391572758,1760668248818,-150.0,0.00026222,4]
[391572759,1760668248828,-150.0,0.00026232,4]
[391572760,1760668248838,-150.0,0.00026233,4]
[391572761,1760668248848,-188.52,0.00026236,2]
[391572762,1760668248858,-150.0,0.00026237,4]
[391572763,1760668248868,-150.0,0.00026241,4]
[391572764,1760668248878,-150.0,0.00026252,4]
[391572765,1760668248888,-150.0,0.00026252,4]
[391572766,1760668248898,-150.0,0.00026264,4]
[391572767,1760668248907,-150.0,0.00026264,4]
[391572768,1760668248919,-150.0,0.00026271,4]
[391572769,1760668248928,-150.0,0.00026275,4]
[391572770,1760668248939,-150.0,0.00026276,4]
[391572771,1760668248948,-150.0,0.00026276,4]
[391572772,1760668248958,-150.0,0.00026279,4]
[391572773,1760668248968,-150.0,0.0002628,4]
[391572774,1760668248979,-150.0,0.00026283,4]
[391572775,1760668248989,-150.0,0.00026286,4]
[391572776,1760668248999,-150.0,0.00026288,4]
[391572777,1760668249010,-2500.0,0.000263,2]
[391572778,1760668249019,-150.0,0.00026305,4]
[391572779,1760668249029,-150.0,0.0002631,4]
[391572780,1760668249039,-150.0,0.00026314,4]
[391572781,1760668249049,-150.0,0.00026314,4]
[391572782,1760668249059,-150.0,0.00026319,4]
[391572783,1760668249069,-19843.26,0.00026325,2]
[391572784,1760668249078,-150.0,0.00026328,4]
[391572785,1760668249088,-150.0,0.00026334,4]
[391572786,1760668249099,-150.0,0.00026334,4]
[391572787,1760668249108,-150.0,0.00026339,4]
[391572788,1760668249118,-150.0,0.0002634,4]
[391572789,1760668249128,-150.0,0.00026345,4]
[391572790,1760668249138,-150.0,0.00026352,4]
[391572791,1760668249148,-150.0,0.00026358,4]
[391572792,1760668249158,-150.0,0.00026373,4]
[391572793,1760668249169,-150.0,0.00026376,4]
[391572794,1760668249179,-150.0,0.00026376,4]
[391572795,1760668249189,-150.0,0.0002638,4]
[391572796,1760668249199,-150.0,0.00026388,4]
[391572797,1760668249208,-150.0,0.00026392,4]
[391572798,1760668249218,-150.0,0.00026392,4]
[391572799,1760668249230,-150.0,0.00026393,4]
[391572800,1760668249240,-150.0,0.00026397,4]
[391572801,1760668249251,-150.0,0.00026407,4]
[391572802,1760668249260,-150.0,0.00026407,4]
[391572803,1760668249270,-150.0,0.00026407,4]
[391572804,1760668249281,-150.0,0.00026407,4]
[391572805,1760668249290,-150.0,0.00026407,4]
[391572806,1760668249300,-150.0,0.00026425,4]
[391572807,1760668249311,-3882.18603291,0.00026432,2]
[391572808,1760668249320,-150.0,0.00026433,4]
[391572809,1760668249330,-150.0,0.00026436,4]
[391572810,1760668249340,-150.0,0.00026438,4]
[391572811,1760668249350,-150.0,0.00026438,4]
[391572812,1760668249360,-150.0,0.00026441,4]
[391572813,1760668249370,-150.0,0.00026447,4]
[391572814,1760668249379,-168.0,0.00026448,2]
[391572815,1760668249390,-150.0,0.00026451,4]
[391572816,1760668249404,-150.0,0.00026451,4]
[391572817,1760668249415,-150.0,0.00026465,4]
[391572818,1760668249425,-150.0,0.00026469,4]
[391572819,1760668249435,-150.0,0.00026475,4]
[391572820,1760668249445,-150.0,0.00026475,4]
[391572821,1760668249455,-150.0,0.00026486,4]
[391572822,1760668249465,-150.0,0.00026498,4]
[391572823,1760668249476,-150.0,0.000265,4]
[391572824,1760668249486,-150.0,0.000265,4]
[391572825,1760668249495,-150.0,0.00026501,4]
[391572826,1760668249505,-899.02,0.00026504,2]
[391572827,1760668249515,-150.0,0.00026509,4]
[391572828,1760668249525,-150.0,0.00026509,4]
[391572829,1760668249536,-150.0,0.00026509,4]
[391572830,1760668249545,-150.0,0.00026509,4]
[391572831,1760668249556,-150.0,0.00026514,4]
[391572832,1760668249566,-151.869967,0.0002652,7]
[391572833,1760668249576,-151.0,0.0002652,7]
[391572834,1760668249586,-151.0,0.0002652,7]
[391572835,1760668249596,-151.0,0.0002652,7]
[391572836,1760668249606,-151.0,0.0002652,7]
[391572837,1760668249615,-151.0,0.0002652,7]
[391572838,1760668249625,-267.535397,0.0002652,7]
[391572839,1760668249635,-151.0,0.0002652,7]
[391572840,1760668249645,-151.0,0.0002652,7]
[391572841,1760668249655,-196.458728,0.0002652,7]
[391572842,1760668249664,-151.0,0.0002652,7]
[391572843,1760668249674,-151.0,0.0002652,7]
[391572844,1760668249684,-151.0,0.0002652,7]
[391572845,1760668249812,-233.986178,0.0002652,7]
[391572846,1760668249822,-151.0,0.0002652,7]
[391572847,1760668249832,-175.68696,0.0002652,7]
[391572848,1760668249842,-175.68696,0.0002652,7]
[391572849,1760668249851,-175.68696,0.0002652,7]
[391572850,1760668249861,-496.543388,0.0002652,7]
[391572851,1760668249871,-496.543388,0.0002652,7]
[391572852,1760668249881,-175.68696,0.0002652,7]
[391572853,1760668249891,-496.543388,0.0002652,7]
[391572854,1760668249901,-151.0,0.0002652,7]
[391572855,1760668249910,-496.543388,0.0002652,7]
[391572856,1760668249921,-151.19012526,0.0002652,7]
[391572857,1760668249931,-151.0,0.0002652,7]
[391572858,1760668249941,-151.0,0.0002652,7]
[391572859,1760668249951,-151.0,0.0002652,7]
[391572860,1760668249960,-151.0,0.0002652,7]
[391572861,1760668249970,-151.0,0.0002652,7]
[391572862,1760668249979,-151.0,0.0002652,7]
[391572863,1760668249989,-415.024085,0.0002652,7]
[391572864,1760668249998,-415.024085,0.0002652,7]
[391572865,1760668250008,-415.024085,0.0002652,7]
[391572866,1760668250019,-151.0,0.0002652,7]
[391572867,1760668250029,-151.0,0.0002652,7]
[391572868,1760668250039,-415.024085,0.0002652,7]
[391572869,1760668250049,-151.0,0.0002652,7]
[391572870,1760668250058,-151.0,0.0002652,7]
[391572871,1760668250068,-125533.92,0.0002652,2]
[391572872,1760668250078,-150.0,0.00026526,4]
[391572873,1760668250087,-150.0,0.00026531,4]
[391572874,1760668250097,-474.79,0.00026532,2]
[391572875,1760668250106,-949.31,0.00026532,2]
[391572876,1760668250116,-474.73,0.00026532,2]
[391572877,1760668250125,-474.73,0.00026532,2]
[391572878,1760668250135,-474.73,0.00026532,2]
[391572879,1760668250144,-474.73,0.00026532,2]
[391572880,1760668250154,-474.79,0.00026532,2]
[391572881,1760668250165,-473.83,0.00026532,2]
[391572882,1760668250175,-150.0,0.00026539,4]
[391572883,1760668250185,-150.0,0.00026542,4]
[391572884,1760668250195,-150.0,0.00026543,4]
[391572885,1760668250205,-150.0,0.0002655,4]
[391572886,1760668250214,-150.0,0.00026553,4]
[391572887,1760668250224,-150.0,0.00026555,4]
[391572888,1760668250236,-150.0,0.00026562,4]
[391572889,1760668250246,-150.0,0.00026562,4]
[391572890,1760668250256,-751.33052343,0.00026566,2]
[391572891,1760668250266,-150.0,0.00026567,4]
[391572892,1760668250276,-150.0,0.00026567,4]
[391572893,1760668250285,-150.0,0.00026572,4]
[391572894,1760668250295,-500.93327543,0.00026573,2]
[391572895,1760668250305,-500.0,0.00026573,2]
[391572896,1760668250315,-500.0,0.00026573,2]
[391572897,1760668250324,-500.34377829,0.00026573,2]
[391572898,1760668250333,-500.38572349,0.00026573,2]
[391572899,1760668250343,-500.56758679,0.00026573,2]
[391572900,1760668250352,-505.47647784,0.00026573,2]
[391572901,1760668250362,-500.0,0.00026573,2]
[391572902,1760668250371,-500.0,0.00026573,2]
[391572903,1760668250381,-150.0,0.00026577,4]
[391572904,1760668250390,-176.03,0.00026578,2]